Cogmind - Beta 11.1 @@@ ROGUE MODE // 2022.04.29 @ 16:54:52 Player: Runia Result: Destroyed by G-47 Trooper with Particle Gun Performance ------------- Evolutions (0) 0 Regions Visited (2) 400 Robots Destroyed (25) 125 Value Destroyed (620) 620 Prototype IDs (2) 40 Alien Tech Used (0) 0 Bonus (0) 0 TOTAL SCORE: 1185 Bonus ------- None Cogmind --------- Core Integrity 0/250 Matter 265/300 Energy 280/280 System Corruption 1% Temperature Cool (9) Movement Treading (240) Ox1 Location -10/Mines Parts ------- > --- POWER (1) -------- Heavy Ion Engine > --- PROPULSION (2) --- Light Treads Light Treads > --- UTILITY (2) ------ High-capacity Storage Unit Structural Scanner > --- WEAPON (2) ------- Shotgun Shotgun > --- INVENTORY (20) --- Heavy Ion Engine Light Treads Light Treads Light Treads Assault Rifle Assault Rifle Light Assault Rifle Light Assault Rifle Shotgun Shotgun Light Cannon Grenade Launcher Mini Grenade Launcher Mini Grenade Launcher Mini Grenade Launcher Mini Grenade Launcher Plasma Cutter Mining Claw Peak State ------------ > --- POWER ------------ Heavy Ion Engine > --- PROPULSION ------- Light Treads Light Treads > --- UTILITY ---------- High-capacity Storage Unit Structural Scanner > --- WEAPON ----------- Shotgun Shotgun > --- INVENTORY -------- Heavy Ion Engine Light Treads Light Treads Light Treads Assault Rifle Assault Rifle Light Assault Rifle Light Assault Rifle Shotgun Shotgun Light Cannon Grenade Launcher Mini Grenade Launcher Mini Grenade Launcher Mini Grenade Launcher Mini Grenade Launcher Plasma Cutter Mining Claw [Rating: 13] Favorites ----------- Power Light Ion Engine Engine Light Ion Engine Propulsion Light Treads Treads Light Treads Leg Aluminum Leg Utility Structural Scanner Device Structural Scanner Storage High-capacity Storage Unit Weapon Medium Laser Energy Gun Medium Laser Ballistic Gun Shotgun Ballistic Cannon Light Cannon Build | -11 -10 -10 ------- Run | Scr Mat Min Slots Evolved . | . . . Power . | . . . Propulsion . | . . . Utility . | . . . Weapon . | . . . Parts Attached 15 | 2 11 2 Power 2 | . 2 . Engine 2 | . 2 . Core . | . . . Reactor . | . . . Propulsion 5 | 2 3 . Treads 5 | 2 3 . Leg . | . . . Wheel . | . . . Hover . | . . . Flight . | . . . Utility 4 | . 4 . Device 1 | . 1 . Storage 3 | . 3 . Processor . | . . . Hackware . | . . . Protection . | . . . Artifact . | . . . Weapon 4 | . 2 2 Energy Gun . | . . . Energy Cannon . | . . . Ballistic Gun 3 | . 1 2 Ballistic Cannon 1 | . 1 . Launcher . | . . . Special Weapon . | . . . Impact Weapon . | . . . Slashing Weapon . | . . . Piercing Weapon . | . . . Special Melee Weapon . | . . . Unidentified Prototypes . | . . . Parts Lost . | . . . Power . | . . . Propulsion . | . . . Utility . | . . . Weapon . | . . . Highest Loss Streak . | . . . To Critical Strikes . | . . . Average Slot Usage (%) 97 | . 95 100 Engine 14 | . 14 14 Treads 27 | . 27 28 Device 11 | . 10 14 Storage 14 | . 14 14 Energy Gun 12 | . 17 . Ballistic Gun 7 | . . 23 Ballistic Cannon 8 | . 10 4 Naked Turns . | . . . Heaviest Build 55 | 11 54 55 Greatest Support 40 | 40 40 40 Greatest Overweight (x) 1 | . 1 1 Average Overweight (x) . | . . 1 Largest Inventory Capacity 20 | 8 20 20 Average Capacity 17 | 8 16 20 Most Carried 20 | 6 20 18 Average Carried 11 | 4 8 18 Final Capacity 20 | 8 20 20 Final Carried 18 | 2 18 18 Class Distribution -------------------- 100% | Mutant Dominant Class ---------------- Mutant | -10/Materials Mutant | -10/Mines Resources | -11 -10 -10 ----------- Run | Scr Mat Min Matter Collected 615 | 200 207 208 Remotely . | . . . Salvage Created 742 | . 561 181 Parts 47 | . 33 14 Haulers Intercepted 1 | . 1 . Recyclers Shooed 2 | . 2 . Parts Field Recycled . | . . . Retrieved Matter . | . . . Parts Self-Destructed . | . . . Prevented . | . . . Kills | -11 -10 -10 ------- Run | Scr Mat Min Combat Hostiles Destroyed 20 | . 15 5 Guns 8 | . 4 4 Cannons 12 | . 11 1 Classes Destroyed 6 | . 5 1 Builder 1 | . 1 . Hauler 1 | . 1 . Recycler 1 | . . 1 Watcher 2 | . 2 . Swarmer 6 | . 3 3 Grunt 14 | . 12 2 Best Kill Streak 5 | . 5 3 Combat Bots Only 4 | . 4 3 Max Kills in Single Turn 1 | . 1 1 Gunslinging . | . . . Exploded . | . . . Melee . | . . . Uniques/NPCs Destroyed . | . . . Combat | -11 -10 -10 -------- Run | Scr Mat Min Damage Taken 819 | . 532 287 Core 262 | . 165 97 Absorbed by Shields . | . . . Core Remaining (%) 100 | 100 . . Volleys Fired 76 | . 55 21 Largest 2 | . 2 2 Hottest 90 | . 90 55 Shots Fired 152 | . 110 42 Gun 98 | . 69 29 Cannon 54 | . 41 13 Launcher . | . . . Special . | . . . Kinetic 83 | . 41 42 Thermal 69 | . 69 . Explosive . | . . . Electromagnetic . | . . . Robot Hit Streak 11 | . 11 7 Robot Miss Streak 4 | . 4 4 Penetration Max . | . . . Secondary Targets . | . . . Shots Hit Robots 89 | . 65 24 Core Hits 35 | . 27 8 Critical Kills . | . . . Critical Parts Destroyed . | . . . Critical Strikes 7 | . 7 . Burn 6 | . 6 . Blast 1 | . 1 . Melee Attacks . | . . . Impact . | . . . Slashing . | . . . Piercing . | . . . Sneak Attacks . | . . . Combat Hostiles . | . . . Follow-up Attacks . | . . . Damage Inflicted 1324 | . 991 333 Guns 605 | . 429 176 Cannons 707 | . 550 157 Explosions . | . . . Melee . | . . . Ramming 12 | . 12 . Kinetic 883 | . 550 333 Thermal 429 | . 429 . Explosive . | . . . Electromagnetic . | . . . Impact . | . . . Slashing . | . . . Piercing . | . . . Highest Corruption 1 | . 1 1 Average Corruption 1 | . 1 1 Corruption Purged . | . . . Corruption Blocked . | . . . Effects 11 | . 5 6 Message Errors 2 | . . 2 Matter Fused 2 | . 1 1 Energy Discharges 3 | . 3 . Data Loss (minor) 2 | . . 2 Data Loss (major) 2 | . 1 1 Overload Shots . | . . . Overflow Damage 5 | . 5 . Projectiles 5 | . 5 . Explosions . | . . . Melee . | . . . Knockbacks 10 | . 9 1 Impact . | . . . Kinetic 10 | . 9 1 Secondary . | . . . Self-Inflicted Damage . | . . . Shots . | . . . Rammed 4 | . 4 . Targets Rammed 4 | . 4 . Kicked . | . . . Crushed . | . . . Highest Temperature 300 | . 300 120 Average Temperature 92 | . 99 53 Received Heat Transfer 315 | . 207 108 Siege Activations . | . . . Robots Corrupted . | . . . Combat Hostiles . | . . . Parts Fried . | . . . Impact Corruptions . | . . . Robots Melted . | . . . Combat Hostiles . | . . . Parts Melted 3 | . 3 . Heat Transferred 1643 | . 1643 . Parts Sabotaged . | . . . Parts Stolen . | . . . Parts Stripped . | . . . Power Chain Reactions . | . . . Missiles Intercepted . | . . . Alert | -11 -10 -10 ------- Run | Scr Mat Min Peak Influence 262 | . 262 198 Initial 73 | . . 73 Average 122 | . 133 99 Maximum Alert Level 1 | . 1 . Low Security (%) 91 | 100 87 100 Level 1 8 | . 12 . Level 2 . | . . . Level 3 . | . . . Level 4 . | . . . Level 5 . | . . . High Security . | . . . Max Security . | . . . Squads Dispatched 5 | . 5 . Investigation 3 | . 3 . Extermination . | . . . Reinforcement 2 | . 2 . Assault . | . . . Garrison . | . . . Intercept . | . . . Searches Triggered . | . . . Construction Impeded . | . . . Haulers Reinforced . | . . . Active Scanning Responses . | . . . Cargo Convoy Interrupts . | . . . Stealth | -11 -10 -10 --------- Run | Scr Mat Min Distress Signals 2 | . 2 . Communications Jammed . | . . . Distress Signals . | . . . Times Spotted 33 | . 26 7 Peak Tracking Total 4 | . 4 3 Tactical Retreats 1 | . 1 . Traps | -11 -10 -10 ------- Run | Scr Mat Min Traps Triggered 3 | . 3 . Indirectly . | . . . Trap Hack Attempts . | . . . Triggered . | . . . Disarmed . | . . . Reprogrammed . | . . . Reused . | . . . Traps Extracted . | . . . Installed . | . . . Triggered . | . . . Machines | -11 -10 -10 ---------- Run | Scr Mat Min Machines Disabled . | . . . Max in Single Turn . | . . . Machines Sabotaged . | . . . Garrisons Compromised . | . . . Overloaded Fab Kills . | . . . Hacking | -11 -10 -10 --------- Run | Scr Mat Min Machines Accessed 8 | . 8 . Terminals 6 | . 6 . Fabricators . | . . . Repair Stations . | . . . Recycling Units 2 | . 2 . Scanalyzers . | . . . Garrison Access . | . . . Total Hacks 19 | . 19 . Successful 9 | . 9 . Failed 9 | . 9 . Catastrophic 2 | . 2 . Database Lockouts 1 | . 1 . Manual 18 | . 18 . Terminals 17 | . 17 . Fabricators . | . . . Repair Stations . | . . . Recycling Units 2 | . 2 . Scanalyzers . | . . . Garrison Access . | . . . Terminal Hacks 7 | . 7 . Robot Analysis 6 | . 6 . Prototype ID Bank 1 | . 1 . Fabricator Hacks . | . . . Repair Station Hacks . | . . . Recycling Unit Hacks . | . . . Scanalyzer . | . . . Garrison Access Hacks . | . . . Unauthorized Hacks 2 | . 2 . Terminals . | . . . Fabricators . | . . . Repair Stations . | . . . Recycling Units 2 | . 2 . Tunnel 2 | . 2 . Scanalyzers . | . . . Garrison Access . | . . . Data Cores Recovered . | . . . Used . | . . . Hacking Detections 6 | . 6 . Full Trace Events . | . . . Feedback Events . | . . . Feedback Blocked . | . . . Robot Schematics Acquired . | . . . Robots Built . | . . . Authchips . | . . . Time . | . . . Total Robot Build Rating . | . . . Part Schematics Acquired . | . . . Parts Built . | . . . Authchips . | . . . Time . | . . . Total Part Build Rating . | . . . Parts Repaired . | . . . Time . | . . . Parts Recycled . | . . . Recycled Matter . | . . . Retrieved Matter . | . . . Retrieved Components . | . . . Parts Scanalyzed . | . . . Part Schematics Acquired . | . . . Parts Damaged . | . . . Bothacking | -11 -10 -10 ------------ Run | Scr Mat Min Used RIF Installer . | . . . Robots Hacked . | . . . Non-combat . | . . . Combat . | . . . Robot Hacks Applied . | . . . Relay Couplers Released . | . . . Fabnet Peak Effective % . | . . . Robots Rewired . | . . . Allies Hacked . | . . . Hacks Repelled . | . . . Allies | -11 -10 -10 -------- Run | Scr Mat Min Total Allies . | . . . Largest Group . | . . . Highest-Rated Group . | . . . Highest-Rated Ally . | . . . Total Orders . | . . . Ally Attacks . | . . . Total Damage . | . . . Kills . | . . . Allies Corrupted . | . . . Allies Melted . | . . . Intel | -11 -10 -10 ------- Run | Scr Mat Min Robot Analysis Total 6 | . 6 . Derelict Logs Recovered 2 | . . 2 Drone Launches . | . . . Drone Recoveries . | . . . Exploration | -11 -10 -10 ------------- Run | Scr Mat Min Turns Passed 1996 | 5 1370 621 Spaces Moved 783 | 1 553 229 Core . | . . . Treads 783 | 1 553 229 Legs . | . . . Wheels . | . . . Hover . | . . . Flight . | . . . Fastest Speed 160 | 160 160 240 Average Speed 216 | 160 207 240 Slowest Speed 240 | 160 240 240 Overloaded Moves . | . . . Propulsion Burnouts . | . . . Robots Hopped . | . . . Cave-ins Triggered . | . . . Exploration Rate (%) 49 | 2 93 53 Regions Visited 2 Branch Regions 1 Pre-discovered Areas 3 | . 2 1 Known Exits Taken . | . . . Unknown Exits Taken 2 | 1 1 . Scrap Searched 1 | . . 1 Spaces Dug . | . . . Terrain Destroyed . | . . . Melee . | . . . Projectile . | . . . AOE . | . . . Terrain Rammed . | . . . Walls Destroyed . | . . . Machines Disabled . | . . . Actions | -11 -10 -10 --------- Run | Scr Mat Min Total 934 | 6 666 262 Wait 23 | . 13 10 Move 781 | . 552 229 Hop . | . . . Pick Up 21 | . 21 . Fast Attach 3 | . 3 . Attach 4 | 2 2 . Detach . | . . . Swap 8 | . 6 2 Drop 14 | 4 10 . Fire 76 | . 55 21 Melee . | . . . Ram . | . . . Kick . | . . . Crush 4 | . 4 . Escape Stasis . | . . . Rewire . | . . . Trap . | . . . Miscellaneous . | . . . Route ------- -11/Scrapyard -10/Materials (discovered 5 exits: [*Mat x3] / [*Min x2]) -10/Mines (discovered 1 exit: [*Mat]) History --------- Turn | Location | Event 6 | -11/Scrapyard | Discovered new exit (range 0) 6 | -11/Scrapyard | Entered Materials 82 | -10/Materials | Discovered new exit (range 3) 308 | -10/Materials | Build established: Mutant 425 | -10/Materials | Discovered new exit (range 11) 728 | -10/Materials | Discovered new exit (range 11) 895 | -10/Materials | Discovered new exit (range 15) 1078 | -10/Materials | Central database locked down 1186 | -10/Materials | Core integrity fell below 50% 1223 | -10/Materials | Discovered new exit (range 6) 1376 | -10/Materials | Entered Mines 1409 | -10/Mines | Core integrity fell below 20% 1495 | -10/Mines | Learned location of Zion (-6) 1855 | -10/Mines | Discovered new exit (range 9) 1997 | -10/Mines | Destroyed by G-47 Trooper with Particle Gun Last Messages --------------- 01585_ S-10 Pest destroyed. 01593_ K-01 Serf collects debris. 01600_ S-10 Pest destroyed. 01602_ HI#USOSDA&G4VIE 01603_ Acquired 9 matter. 01608_ Acquired 16 matter. 01610_ Acquired 13 matter. 01614_ K-01 Serf collects debris. 01685_ System corrupted: Matter fused (-9). 01707_ T-07 Excavator is excavating. 01829_ Searching scrap... 01829_ Found Heat Sink. 01829_ Found Lrg. Storage Unit. 01829_ Found 20 Matter. 01830_ Acquired 20 matter. 01844_ System corrupted: Component data lost. 01855_ EXIT=FOUND 01913_ K-01 Serf collects debris. 01959_ System corrupted: Component data lost. 01997_ System corrupted: Substantial component data lost. Map ----- +----------------------------------------------------+ | ????????## ##?????????????????????? | | ????????## ##?????????????????????? | | ????????### # ##?????????????????????? | | ########### # ###?????????????????????? | | ########### ## ####?????????????????????? | | #######??????????????????????? | | ########## ######???????????????????????? | | ########## ##???????????????????????????? | | ##??????## ###########??????????????????? | | ##??????## ############?????????????????? | | ##??????## #### ####????????????????? | | ##??????## ####???????????????? | | ##??????####### ####??????????????? | | ??????######## ####?????????????? | | ##???????????###### ####????????????? | | ##????????????###### ###????????????? | | ##???????????????### #######???????? | | #????????????????## ########??????? | | ?????????????????### ## ######???? | | ??????#####??????#### ######??? | | ??????#####???????#### ###??? | | ????? ##????????#### ### ###?? | | ????## ##?????????### #### ####? | | # ??## ##??????????## ######## #### | | ### ### ############## ######### ### | | #### ## ##############@##????#### ## | | ??## ! ! g ##?####### ## | | ??## ### #################?###### ## | | ??# ?#### #################### ### | | ???????? ??????????????### #### | | ??????## """???????????????## #####? | | ??????## """ ??????????????## #####?? | | ??????## """ ??????????????### ####???? | | ??????## ?????????????###########????? | | ??????## < ??????????????########??????? | | ?????? # #??????????????????????????? | | ?????? #########??????????????????????????? | | ?????? ########??????????????????????????? | | ??????????????????????????????????????????? | | ??????????????????????????????????????????? | | ??????????????????????????????????????????? | | ??????????????????????????????????????????? | | ??????????????????????????????????????????? | | ??????????????????????????????????????????? | | ??????????????????????????????????????????? | | ??????????????????????????????????????????? | | ??????????????????????????????????????????? | | ??????????????????????????????????????????? | | ??????????????????????????????????????????? | | ??????????????????????????????????????????? | +----------------------------------------------------+ Best States ------------- Heat Dissipation 25 Energy Generation 14 Energy Capacity 280 Matter Stores 300 Matter Capacity 300 Sight Range 16 Terrain Scan Density 10 Evasion (%) 40 Recoil Reduction 2 Item Schematics ----------------- None Robot Schematics ------------------ None Fabricated ------------ Nothing Alien Tech Used ----------------- None Achievements -------------- None Challenges ------------ None Game ------ Seed TachyonProcessingBoregun Manual? 0 Play Time 00:09:55 Cumulative 613.3 hours Start 2022.04.29 @ 16:46:22 End 2022.04.29 @ 16:54:52 Sessions 1 Manual Loads 0 Difficulty Rogue Special Mode None Game No. 577 Rogue 577 Adventurer 0 Explorer 0 Win Type - Total 22 Types 10/4/4/1/1/0/1/1/0 Lore% 88 Gallery% 95 Achievement% 77 Wizard Run 0 Options --------- ASCII 0 Keyboard 0 Movement Mouse Keybinds 1 Fullscreen 2 Font 24/Smallcaps Map View 76x50 Tactical HUD 1 Map Filters NONE Filters NONE Steam 1 RUN: 51a29dfb-f98b-431f-9e2c-128dca7b693e